bitfinex/quotes_ETHUSD_20250110
["timestamp","ask_amount","ask_price","bid_price","bid_amount"]
[1736515820817,2.0,3279.1,3271.9,0.8382807]
[1736515821141,0.60974306,3279.7,3275.1,6.54105951]
[1736515821142,0.0225,3277.1,3275.1,6.54105951]
[1736515821423,0.25,3280.6,3276.1,3.0524]
[1736515821741,6.54105951,3281.7,3276.3,3.05222]
[1736515821876,3.04812,3280.7,3275.4,0.25]
[1736515822086,6.54105951,3278.3,3275.4,0.25]
[1736515822288,9.59262951,3277.0,3271.2,3.05692]
[1736515822487,6.54105951,3275.7,3270.7,1.51158684]
[1736515822713,6.54105951,3275.7,3267.9,6.54105951]
[1736515822714,0.59594012,3273.8,3269.0,1.57770398]
[1736515822926,6.54105951,3275.7,3272.3,3.05586]
[1736515822927,0.25,3274.6,3272.3,3.05586]
[1736515823103,0.25,3273.0,3266.7,6.54105951]
[1736515823314,0.25,3270.2,3267.3,0.59856648]
[1736515823542,0.25,3270.2,3265.8,1.5874971]
[1736515823759,0.25,3270.2,3267.9,3.06004]
[1736515824028,0.25,3270.2,3265.7,1.224866]
[1736515824029,0.25,3270.0,3268.7,6.54105951]
[1736515824230,0.25,3271.0,3269.8,6.54105951]
[1736515824434,0.25,3270.4,3269.8,6.54105951]
[1736515824590,2.0,3270.0,3269.9,3.0701]
[1736515824925,1.22382,3272.8,3270.1,3.05792]
[1736515825125,0.15763729,3275.1,3272.1,3.0561]
[1736515825290,3.05352,3274.9,3269.2,3.0588]
[1736515825491,6.54105951,3273.6,3269.2,3.0588]
[1736515825690,6.54105951,3273.6,3265.8,1.5874971]
[1736515825691,6.54105951,3271.0,3266.6,7.68232037]
[1736515826008,6.54105951,3269.9,3264.2,0.31183538]
[1736515826317,6.54105951,3269.9,3265.1,0.60253657]
[1736515826502,0.41753951,3266.1,3264.3,0.05601726]
[1736515826702,5.0,3266.0,3264.3,0.05601726]
[1736515826890,0.39640482,3266.7,3264.3,0.05601726]
[1736515827090,0.25,3266.6,3263.7,3.064]
[1736515827292,0.25,3269.5,3264.4,0.77039666]
[1736515827491,0.33409615,3270.0,3264.3,0.3488488]
[1736515827727,19.99601892,3273.4,3263.8,0.43870992]
[1736515827728,0.05529037,3269.4,3264.5,0.3488488]
[1736515827933,0.05529037,3269.4,3266.7,35.0]
[1736515828092,3.05626,3272.0,3268.0,6.54105951]
[1736515828292,3.05502,3273.3,3268.0,6.88990831]
[1736515828536,0.05199562,3272.0,3266.9,0.3488488]
[1736515828836,0.05199562,3272.0,3267.0,3.37091877]
[1736515829020,3.05455,3273.9,3269.2,3.05885]
[1736515829194,0.15736,3274.8,3267.9,6.54105951]
[1736515829394,3.05485,3273.5,3267.7,0.37091877]
[1736515829594,0.15736,3274.8,3265.8,1.52478019]
[1736515829595,3.05613,3272.2,3267.0,0.25]
[1736515829935,6.54105951,3271.4,3265.6,3.06222]
[1736515830157,6.54105951,3271.4,3263.1,3.06456]
[1736515830158,6.54105951,3268.5,3264.0,0.25]
[1736515830294,19.99601892,3270.8,3260.1,6.54105951]
[1736515830295,6.54105951,3267.3,3265.8,3.06203]
[1736515830497,0.15731,3264.9,3263.0,0.59861626]
[1736515830822,0.15731,3264.9,3260.3,0.25]
[1736515830823,0.62657294,3267.9,3265.9,0.03543947]
[1736515830993,6.54105951,3267.5,3263.6,0.3319609]
[1736515831200,0.0225,3266.9,3263.6,0.3319609]
[1736515831506,0.00822266,3267.2,3263.8,3.06391]
[1736515831822,0.05529037,3266.8,3264.5,9.60421951]
[1736515832135,0.05529037,3266.8,3264.6,0.42382964]
[1736515832358,0.05835037,3266.8,3265.7,3.06207]
[1736515832645,0.05835037,3266.8,3264.6,0.03653965]
[1736515832825,6.54105951,3266.0,3261.5,0.25]
[1736515833133,6.54105951,3264.7,3254.6,1.54457155]
[1736515833425,0.79594951,3260.8,3260.7,3.06682]
[1736515833588,5.39726252,3264.6,3260.2,3.06729]
[1736515833589,0.25,3264.4,3260.2,3.06729]
[1736515833790,0.00306,3264.7,3257.1,0.3289009]
[1736515833791,0.25,3262.3,3257.1,0.3289009]
[1736515833931,0.62295573,3260.9,3257.1,0.3289009]
[1736515834135,0.0225,3259.9,3257.1,0.3289009]
[1736515834342,0.0225,3259.9,3250.5,3.0391]
[1736515834343,0.25,3261.4,3257.2,0.37485504]
[1736515834568,6.1265,3264.5,3261.0,2.59001202]
[1736515834776,3.0,3263.1,3260.6,0.41493972]
[1736515834932,13.0,3266.8,3263.0,9.51e-06]
[1736515835131,3.06164,3266.3,3263.1,4.286]
[1736515835367,13.0,3266.8,3263.2,0.43762667]
[1736515835567,3.05997,3268.1,3263.1,4.286]
[1736515835568,3.06203,3265.8,3263.1,4.286]
[1736515835778,3.06117,3266.8,3263.2,3.06447]
[1736515835988,3.05948,3268.6,3263.4,3.06426]
[1736515836314,3.05847,3269.6,3264.1,0.2492]
[1736515836581,3.06004,3268.0,3264.3,3.06335]
[1736515836815,3.05938,3268.7,3264.6,0.2492]
[1736515836994,3.05865,3269.5,3265.0,0.2492]
[1736515837224,3.0593,3268.8,3265.2,3.06259]
[1736515837493,0.00822266,3269.2,3265.8,0.2492]
[1736515838075,0.00822266,3269.2,3266.7,0.2492]
[1736515838277,5.27582748,3269.1,3266.7,0.2492]
[1736515838477,0.27582748,3269.1,3266.7,0.2492]
[1736515838813,0.00822266,3269.2,3264.7,0.2492]
[1736515839022,0.00822266,3269.2,3265.3,3.0625]
[1736515839316,3.05954,3268.5,3262.8,1.56985763]
[1736515839452,0.00822266,3269.2,3262.3,0.34032471]
[1736515839818,0.00822266,3269.2,3261.8,0.40059294]
[1736515840023,6.54105951,3266.7,3262.1,3.0655]
[1736515840153,6.54105951,3266.0,3260.0,0.25]
[1736515840352,6.54105951,3264.5,3258.8,0.25]
[1736515840557,0.61619221,3263.8,3258.8,0.25]
[1736515840792,0.30764726,3265.4,3257.4,0.25]
[1736515840793,6.54105951,3262.3,3257.4,0.25]
[1736515841106,0.30764726,3262.3,3255.2,4.65307435]
[1736515841309,6.54105951,3260.4,3254.5,3.07264]
[1736515841474,6.54105951,3259.3,3255.1,3.0721]
[1736515841815,2.0,3262.1,3256.8,6.54105951]
[1736515842101,0.05523751,3259.2,3255.1,6.1442]
[1736515842254,0.05523751,3259.2,3256.1,3.07115]
[1736515842454,2.0,3262.1,3256.4,6.54105951]
[1736515842769,3.06535,3262.3,3257.2,3.07012]
[1736515842967,3.0653,3262.4,3257.8,3.06952]
[1736515843289,0.05119749,3262.2,3259.1,3.06828]
[1736515843516,0.05119749,3262.2,3260.0,3.06746]
[1736515843654,0.05119749,3262.2,3258.8,3.06859]
[1736515844014,0.05119749,3262.2,3256.7,6.54105951]
[1736515844158,0.05119749,3262.2,3259.3,3.06806]
[1736515844362,3.06401,3263.7,3259.3,4.296]
[1736515844558,0.19201081,3264.0,3255.9,0.25]
[1736515844773,0.05122476,3263.6,3261.3,35.0]
[1736515845001,0.05122476,3263.6,3261.5,3.06607]
[1736515845208,0.19201081,3264.0,3261.5,3.06607]
[1736515845410,3.06266,3265.2,3262.5,3.06504]
[1736515845610,6.54105951,3264.8,3258.0,0.25]
[1736515845778,3.58008012,3265.4,3260.3,3.06715]
[1736515845779,9.60525951,3263.5,3260.3,3.06715]
[1736515845973,0.36379726,3263.4,3256.2,1.5873383]
[1736515846325,0.33132748,3263.8,3256.1,6.1423]
[1736515846326,3.0,3263.8,3259.6,6.54105951]
[1736515846491,0.40067135,3263.4,3259.7,4.296]
[1736515846840,8.01e-06,3263.4,3263.2,3.06442]
[1736515847016,3.58008012,3263.9,3260.8,1.59679967]
[1736515847176,1.12819579,3265.2,3265.1,3.06269]
[1736515847375,3.05947,3268.6,3265.4,3.06233]
[1736515847696,3.05947,3268.6,3264.0,4.295]
[1736515847697,4.49325212,3266.5,3263.8,3.06389]
[1736515847896,4.49325212,3266.5,3260.5,1.57624166]
[1736515848096,4.49325212,3266.5,3260.4,6.54105951]
[1736515848299,4.49325212,3266.5,3260.6,0.05608082]
[1736515848473,4.49325212,3266.5,3262.2,6.54105951]
[1736515848669,4.49325212,3266.4,3261.5,6.54105951]
[1736515848874,4.49325212,3266.4,3260.1,0.64092119]
[1736515848875,6.54105951,3266.0,3259.0,6.54105951]
[1736515849073,4.49325212,3266.4,3265.1,3.06264]
[1736515849270,4.49325212,3266.4,3264.7,3.06303]
[1736515849483,4.49325212,3266.4,3264.1,3.06356]
[1736515849707,4.49325212,3266.4,3264.8,3.06289]
[1736515849906,4.49325212,3266.4,3262.0,1.52847726]
[1736515850109,13.51320229,3265.6,3264.8,3.06291]
[1736515850307,13.51320229,3265.6,3265.0,3.06269]
[1736515850619,13.51320229,3265.6,3260.4,6.54105951]
[1736515850775,13.51320229,3265.6,3262.9,6.54105951]
[1736515850975,13.51320229,3265.6,3260.6,6.13384]
[1736515851189,13.51320229,3265.6,3262.5,6.54105951]
[1736515851389,13.51320229,3265.6,3260.1,1.1219]
[1736515851390,13.51320229,3265.6,3261.4,3.06616]
[1736515851590,13.51320229,3265.6,3260.2,6.54105951]
[1736515851886,13.51320229,3265.6,3260.4,1.59067747]
[1736515852087,6.54105951,3265.3,3259.5,3.06787]
[1736515852292,3.06457,3263.1,3256.9,4.295]
[1736515852520,6.54105951,3262.2,3259.1,3.06824]
[1736515852707,6.54105951,3261.2,3256.9,4.295]
[1736515853019,0.33083934,3261.1,3252.5,1.543208]
[1736515853179,1.93374951,3255.7,3253.4,3.07368]
[1736515853380,3.07276,3254.4,3250.6,0.3319609]
[1736515853606,3.07358,3253.6,3250.6,0.3319609]
[1736515853793,5.48035324,3255.6,3250.6,0.3319609]
[1736515853997,0.05529037,3253.5,3250.3,35.0]
[1736515854410,10.72497575,3252.3,3249.8,0.39092119]
[1736515854579,6.54105951,3249.9,3246.5,0.25]
[1736515854883,7.32251533,3249.8,3244.1,0.10368318]
[1736515855081,6.60649229,3245.4,3244.1,0.10368318]
[1736515855283,6.60649229,3244.2,3240.4,3.08603]
[1736515855580,0.4080235,3244.1,3237.6,6.93845319]
[1736515855779,2.0,3241.8,3240.5,1.233554]
[1736515855979,0.0225,3241.0,3240.5,1.233554]
[1736515856181,3.97345078,3244.0,3240.6,35.0]
[1736515856478,2.91368373,3244.9,3243.6,6.60649229]
[1736515856688,3.07862,3248.2,3244.8,20.19604693]
[1736515856980,3.2715607,3248.3,3247.4,6.60649229]
[1736515856981,0.1929507,3248.3,3247.4,6.60649229]
[1736515857224,3.07652,3250.5,3248.1,6.60649229]
[1736515857525,10.41076747,3252.3,3248.1,6.60649229]
[1736515857831,0.0075,3253.4,3250.6,6.60649229]
[1736515858025,0.3646789,3255.4,3251.8,6.60649229]
[1736515858323,1.53799409,3258.6,3253.1,6.60649229]
[1736515858502,3.07318,3254.0,3253.1,5.06949229]
[1736515858698,0.60757076,3254.5,3250.0,16.66643464]
[1736515858699,0.60757076,3254.5,3251.9,6.60649229]
[1736515858900,0.27182764,3255.8,3251.9,6.60649229]
[1736515859130,1.234078,3253.9,3253.5,35.0]
[1736515859334,3.07346,3253.7,3253.2,6.60569229]
[1736515859561,0.88699357,3253.9,3250.0,20.19604693]
[1736515859562,0.88699357,3253.9,3250.0,6.60649229]
[1736515859695,0.88699357,3253.9,3251.6,0.25]
[1736515860128,0.88699357,3253.9,3250.8,0.25]
[1736515860332,0.88699357,3253.9,3249.7,3.0772]
[1736515860630,0.37816405,3253.8,3250.5,3.07638]
[1736515860797,0.3855147,3253.8,3248.8,0.25]
[1736515860991,0.88699357,3253.9,3250.6,3.07631]
[1736515861197,0.88699357,3253.9,3251.5,6.151]
[1736515861431,18.15003791,3253.8,3252.6,3.0]
[1736515861628,19.38249291,3253.8,3252.1,3.07486]
[1736515861829,19.38249291,3253.8,3252.8,3.0742]
[1736515862031,7.67439261,3256.7,3253.4,6.60649229]
[1736515862334,7.67439261,3256.7,3253.9,6.60649229]
[1736515862657,1.231093,3254.3,3253.2,3.0738]
[1736515862833,0.07822272,3254.2,3254.1,3.07304]
[1736515863140,12.37765496,3259.6,3255.4,3.07177]
[1736515863510,0.70891496,3259.6,3259.5,3.64045]
[1736515863654,10.39477099,3260.0,3259.5,3.64045]
[1736515863655,5.83243637,3260.0,3259.9,3.09007]
[1736515863877,0.27453818,3264.4,3256.9,3.0704]
[1736515864073,6.8380415,3259.7,3259.5,3.06795]
[1736515864274,6.8380415,3259.7,3257.0,0.34105111]
[1736515864275,0.60929558,3263.9,3259.6,8.068]
[1736515864581,9e-07,3263.6,3261.4,6.60649229]
[1736515864789,9e-07,3263.6,3262.1,3.06549]
[1736515865075,1.2301469,3263.6,3260.5,3.06701]
[1736515865215,1.2301469,3263.6,3261.3,6.60649229]
[1736515865415,6.9e-06,3263.6,3261.3,6.60649229]
[1736515865713,6.9e-06,3263.6,3263.4,3.06421]
[1736515865915,6.9e-06,3263.6,3263.5,3.93412959]
[1736515866171,6.9e-06,3263.6,3262.6,3.06498]
[1736515866172,13.51320229,3265.6,3261.6,6.60649229]
[1736515866320,10.9331412,3265.5,3262.8,6.60649229]
[1736515866519,6.0367462,3265.5,3265.3,3.0625]
[1736515866774,9.7128818,3265.4,3265.3,3.0625]
[1736515866978,9.44729519,3265.4,3265.3,3.3125]
[1736515867186,4.4846251,3265.4,3265.3,3.3125]
[1736515867381,13.63871957,3265.4,3265.3,1.01485307]
[1736515867535,13.63871957,3265.4,3265.3,3.80837]
[1736515867735,13.63871957,3265.4,3265.3,3.0625]
[1736515867962,7.71817552,3265.4,3265.3,3.3125]
[1736515868164,12.75758827,3265.9,3265.8,0.25]
[1736515868343,6.60649229,3271.0,3265.8,3.06199]
[1736515868679,0.28275383,3270.7,3264.2,4.299]
[1736515868974,6.78850153,3266.7,3266.6,3.06128]
[1736515869175,2.19670153,3266.7,3266.6,3.06128]
[1736515869347,1.53e-06,3266.7,3266.6,3.06128]
[1736515869757,1.53e-06,3266.7,3265.8,3.06202]
[1736515870083,1.53e-06,3266.7,3266.5,3.06134]
[1736515870267,1.53e-06,3266.7,3263.0,8.17308184]
[1736515870470,1.53e-06,3266.7,3266.5,3.06132]
[1736515870642,1.53e-06,3266.7,3261.9,1.59497354]
[1736515871005,1.53e-06,3266.7,3260.4,6.60649229]
[1736515871006,1.53e-06,3266.7,3262.2,1.50134829]
[1736515871180,1.53e-06,3266.7,3259.9,1.81438527]
[1736515871379,1.53e-06,3266.7,3259.3,3.06805]
[1736515871380,6.60649229,3265.6,3259.7,1.50601747]
[1736515871679,6.60649229,3265.6,3263.7,3.06394]
[1736515871978,1.5308,3266.0,3261.8,7.36279]
[1736515872170,1.53e-06,3266.7,3264.8,3.06289]
[1736515872368,1.53e-06,3266.7,3264.4,3.06325]
[1736515872601,1.53e-06,3266.7,3262.5,6.60649229]
[1736515872908,1.50385834,3267.5,3262.6,9.19512]
[1736515873201,12.74992908,3267.9,3267.0,3.06084]
[1736515873341,12.74992908,3267.9,3265.3,3.0625]
[1736515873342,12.74992908,3267.9,3264.8,3.06295]
[1736515873543,12.74992908,3267.9,3264.6,0.3879]
[1736515873843,12.74992908,3267.9,3266.1,3.0]
[1736515874144,9.13986908,3267.9,3267.7,3.0602]
[1736515874345,9.13986908,3267.9,3265.0,3.0627]
[1736515874565,9.13986908,3267.9,3264.6,3.06313]
[1736515874784,6.60649229,3267.2,3265.6,3.06216]
[1736515874970,9.13986908,3267.9,3262.4,3.06522]
[1736515875178,0.0225,3267.8,3262.9,3.06475]
[1736515875363,9.13986908,3267.9,3265.2,35.0]
[1736515875568,9.13986908,3267.9,3264.8,0.3879]
[1736515875765,9.13986908,3267.9,3266.4,3.06138]
[1736515875980,9.13986908,3267.9,3264.8,0.3879]
[1736515876167,9.13986908,3267.9,3263.1,0.61358718]
[1736515876168,6.60649229,3267.6,3262.7,0.60635408]
[1736515876376,0.37699357,3267.5,3262.4,1.54029652]
[1736515876683,6.60649229,3267.6,3261.4,0.3879]
[1736515876857,9.13986908,3267.9,3265.9,3.06186]
[1736515877055,9.13986908,3267.9,3264.0,3.06368]
[1736515877256,1.5385,3267.8,3263.1,1.5534]
[1736515877457,6.60649229,3267.7,3261.5,1.5534]
[1736515877656,1.5385,3267.8,3263.9,3.06378]
[1736515877858,1.5385,3267.8,3261.7,0.62836789]
[1736515878058,1.5385,3267.8,3262.9,3.07219]
[1736515878263,1.5385,3267.8,3263.7,0.0225]
[1736515878599,1.5385,3267.8,3266.7,3.06116]
[1736515878763,9.13986908,3267.9,3266.6,0.015]
[1736515878957,9.13986908,3267.9,3265.8,3.06199]
[1736515879163,9.13986908,3267.9,3266.8,3.06108]
[1736515879362,9.13986908,3267.9,3264.2,6.60649229]
[1736515879564,9.13986908,3267.9,3263.7,0.00822266]
[1736515879831,9.13986908,3267.9,3264.4,6.60649229]
[1736515880010,9.13986908,3267.9,3266.0,3.06179]
[1736515880305,9.13986908,3267.9,3266.4,0.0075]
[1736515880486,9.13986908,3267.9,3267.7,3.61021]
[1736515880687,9.13986908,3267.9,3267.3,3.0606]
[1736515880897,9.13986908,3267.9,3265.9,3.06186]
[1736515881211,9.13986908,3267.9,3264.4,41.60649229]
[1736515881504,9.13986908,3267.9,3264.5,1.54087705]
[1736515881668,9.13986908,3267.9,3267.4,3.06046]
[1736515881864,9.13986908,3267.9,3267.7,3.06016]
[1736515882065,8.58986908,3267.9,3265.9,3.06189]
[1736515882298,8.58986908,3267.9,3261.8,0.25]
[1736515882507,8.58986908,3267.9,3261.8,15.542]
[1736515882686,8.58986908,3267.9,3264.1,6.60649229]
[1736515882873,8.58986908,3267.9,3266.8,3.06105]
[1736515883078,8.58986908,3267.9,3265.6,0.0075]
[1736515883405,8.58986908,3267.9,3262.0,3.0656]
[1736515883406,3.0,3267.4,3262.0,3.0656]
[1736515883619,4.5305,3267.8,3260.1,4.292]
[1736515883620,1.5305,3265.5,3260.1,3.06734]
[1736515883779,6.60649229,3264.6,3259.8,15.542]
[1736515883982,3.06386,3263.9,3260.6,3.0669]
[1736515884309,3.06386,3263.9,3257.3,1.55968863]
[1736515884310,3.06297,3264.8,3261.4,3.06613]
[1736515884470,1.6386,3264.9,3261.9,3.06568]
[1736515884811,0.03068776,3265.9,3262.1,6.60649229]
[1736515885012,0.03068776,3265.9,3262.2,0.015]
[1736515885165,0.03068776,3265.9,3263.4,0.015]
[1736515885534,0.03068776,3265.9,3264.9,3.06284]
[1736515885706,0.03068776,3265.9,3262.1,6.60649229]
[1736515885909,0.03068776,3265.9,3263.1,6.60649229]
[1736515886090,0.03068776,3265.9,3265.8,3.06203]
[1736515886423,8.58986908,3267.9,3265.5,5.0]
[1736515886646,8.58986908,3267.9,3264.4,3.06333]
[1736515886647,8.58986908,3267.9,3264.0,6.60649229]
[1736515886912,1.6456,3266.6,3261.8,3.06574]
[1736515887134,6.60649229,3265.1,3260.9,3.06655]
[1736515887334,1.6456,3265.0,3262.6,3.06495]
[1736515887475,3.06351,3264.3,3261.1,0.62479467]
[1736515887675,6.60649229,3264.1,3257.6,6.60649229]
[1736515887914,1.6456,3264.8,3258.3,3.06904]
[1736515888112,3.06354,3264.2,3258.6,3.06871]
[1736515888275,3.06487,3262.8,3259.7,3.06772]
[1736515888635,1.6456,3263.4,3257.6,6.60649229]
[1736515888810,1.6456,3263.4,3254.8,15.423]
[1736515888811,1.6456,3263.4,3260.7,3.06679]
[1736515888980,3.06438,3263.3,3260.1,3.06736]
[1736515889183,1.6456,3263.4,3259.7,1.226853]
[1736515889395,8.25209229,3263.4,3259.7,1.226853]
[1736515889728,0.0225,3263.3,3260.2,3.06721]
[1736515889945,0.4325381,3263.2,3259.8,6.60649229]
[1736515890168,0.4325381,3263.2,3259.7,1.226853]
[1736515890956,3.06525,3262.4,3259.8,3.06767]
[1736515891170,4.70056,3263.0,3259.7,1.226853]
[1736515891294,4.70056,3263.0,3256.3,0.62737367]
[1736515891295,3.06842,3259.0,3254.4,6.14552]
[1736515891648,3.06842,3259.0,3254.9,3.07227]
[1736515891649,1.5537,3259.0,3254.9,3.07227]
[1736515891794,3.06916,3258.3,3252.8,1.5495]
[1736515891995,3.06852,3258.9,3254.6,3.07257]
[1736515892191,3.06852,3258.9,3254.5,1.229262]
[1736515892192,3.06971,3257.7,3254.5,1.229262]
[1736515892429,3.06916,3258.3,3254.5,1.229262]
[1736515892736,0.86863061,3258.9,3254.6,0.34088437]
[1736515892893,0.86863061,3258.9,3254.5,0.229262]
[1736515893295,0.19213779,3259.0,3257.6,3.06973]
[1736515893621,1.5465,3261.5,3257.8,0.55]
[1736515893859,1.5465,3261.5,3258.5,0.0225]
[1736515894057,0.43552708,3261.2,3257.7,4.297]
[1736515894251,0.43552708,3261.2,3256.3,0.6235912]
[1736515894444,0.43552708,3261.2,3256.5,3.07078]
[1736515894644,1.5465,3261.5,3257.3,3.06997]
[1736515894844,1.5465,3261.5,3258.6,3.06874]
[1736515895174,1.5465,3261.5,3259.5,3.0]
[1736515895473,1.5465,3261.5,3259.4,35.0]
[1736515895672,1.5251,3263.4,3259.2,3.06823]
[1736515895976,1.5251,3263.4,3259.2,0.0225]
[1736515896196,1.5251,3263.4,3259.4,0.0225]
[1736515896356,0.37616024,3263.3,3258.8,3.06857]
[1736515896534,3.06483,3262.9,3257.8,3.06953]
[1736515896874,3.06483,3262.9,3256.3,0.00822266]
[1736515896875,1.228678,3265.0,3258.5,1.5053]
[1736515897073,1.5145,3266.9,3259.9,1.5053]
[1736515897278,0.43492261,3263.3,3261.0,0.62666534]
[1736515897520,1.228282,3264.9,3263.8,3.06385]
[1736515897641,1.228282,3264.9,3261.1,10.45119373]
[1736515897642,0.13045575,3264.9,3264.7,3.06299]
[1736515898041,3.05935,3268.7,3265.0,3.0]
[1736515898247,0.48004131,3266.7,3265.6,3.06215]
[1736515898578,1.227442,3266.8,3263.9,5.35621091]
[1736515898876,1.227442,3266.8,3263.9,3.75151091]
[1736515899177,1.227442,3266.8,3265.6,3.06216]
[1736515899335,1.227442,3266.8,3263.9,3.75151091]
[1736515899739,3.06141,3266.5,3264.0,3.06369]
[1736515900076,4.5239,3266.2,3260.1,1.5282]
[1736515900238,0.0075,3265.2,3260.3,0.60840425]
[1736515900598,3.06291,3264.9,3260.2,3.0672]
[1736515900737,3.06325,3264.5,3260.1,1.5282]
[1736515900937,1.5239,3265.1,3260.1,1.5282]
[1736515901355,1.5239,3265.1,3260.2,0.86427198]
[1736515901521,6.62317168,3269.3,3261.8,1.5282]
[1736515901522,1.5239,3266.5,3261.8,1.5282]
[1736515901828,2.750337,3267.9,3264.6,35.0]
[1736515902129,2.750337,3267.9,3264.4,6.1267]
[1736515902266,1.5239,3267.9,3266.0,3.06177]
[1736515902463,1.226783,3267.8,3264.4,3.06335]
[1736515902663,1.226783,3267.8,3263.4,3.06428]
[1736515902664,1.226783,3267.8,3263.4,0.48353059]
[1736515902928,1.226783,3267.8,3263.1,6.30773059]
[1736515903086,1.226783,3267.8,3264.0,35.0]
[1736515903268,1.226783,3267.8,3265.3,3.06245]
[1736515903465,1.226783,3267.8,3263.1,5.8242]
[1736515903783,1.5239,3267.9,3264.2,35.0]
[1736515903989,1.5239,3267.9,3263.2,0.62013741]
[1736515904181,1.5239,3267.9,3267.0,3.06085]
[1736515904384,1.5239,3267.9,3267.0,3.06089]
[1736515904579,1.5239,3267.9,3263.8,35.0]
[1736515904776,1.5239,3267.9,3263.6,4.294]
[1736515905165,1.5239,3267.9,3264.3,3.06344]
[1736515905365,3.06016,3267.8,3265.0,3.06272]
[1736515905592,3.92472439,3267.8,3262.7,0.60825155]
[1736515905813,3.92472439,3267.8,3265.0,3.06278]
[1736515905969,3.92472439,3267.8,3263.2,0.48353059]
[1736515906170,3.92472439,3267.8,3266.6,3.06126]
[1736515906409,3.92472439,3267.8,3264.1,3.0]
[1736515906667,3.92472439,3267.8,3264.8,4.294]
[1736515907065,3.92472439,3267.8,3267.6,3.06028]
[1736515907332,3.92472439,3267.8,3266.3,3.06155]
[1736515907567,3.92472439,3267.8,3264.2,1.55877065]
[1736515907686,3.92472439,3267.8,3264.2,3.06349]
[1736515907884,3.92472439,3267.8,3265.6,3.06217]
[1736515908085,3.92472439,3267.8,3263.9,1.5021]
[1736515908086,3.92472439,3267.8,3265.8,3.06199]
[1736515908296,3.92472439,3267.7,3263.9,2.12854946]
[1736515908613,3.92472439,3267.7,3264.0,3.0]
[1736515908909,3.92472439,3267.7,3263.6,4.292]
[1736515908910,1.6591,3267.6,3263.5,0.60770009]
[1736515909219,1.6591,3267.6,3264.9,3.06288]
[1736515909419,1.6591,3267.6,3267.2,3.06067]
[1736515909574,3.92472439,3267.7,3265.1,0.565]
[1736515909775,3.92472439,3267.7,3267.6,3.06035]
[1736515910011,3.92472439,3267.7,3267.2,3.06068]
[1736515910231,3.92472439,3267.7,3266.1,3.015]
[1736515910435,10.95296445,3268.8,3267.9,3.06001]
[1736515910571,10.95296445,3268.8,3267.7,3.06021]
[1736515910771,0.31327887,3267.6,3267.5,6.63294]
[1736515911016,14.73596959,3269.2,3267.9,3.06]
[1736515911179,14.73596959,3269.2,3263.7,1.54158306]
[1736515911375,14.73596959,3269.2,3265.2,4.291]
[1736515911581,8.58986908,3268.4,3265.2,4.291]
[1736515911789,8.58986908,3268.4,3267.1,3.06073]
[1736515912086,8.58986908,3268.4,3265.2,5.87304306]
[1736515912298,3.61344912,3266.8,3266.7,3.06119]
[1736515912500,8.58986908,3268.4,3266.7,8.063]
[1736515912700,1.91341103,3269.1,3267.2,4.6603]
[1736515913014,7.8656436,3269.9,3268.5,3.05943]
[1736515913212,7.8656436,3269.9,3267.2,1.6603]
[1736515913384,7.8656436,3269.9,3268.8,3.05922]
[1736515913589,7.8656436,3269.9,3268.1,3.0]
[1736515913791,7.8656436,3269.9,3268.0,3.05995]
[1736515913792,7.8656436,3269.9,3268.2,0.01593086]
[1736515913988,7.8656436,3269.9,3268.0,3.05995]
[1736515914188,7.8656436,3269.9,3269.7,3.05836]
[1736515914390,7.8656436,3269.9,3269.2,3.05882]
[1736515914713,14.73596959,3270.0,3266.5,3.06138]
[1736515914911,14.73596959,3270.0,3268.2,0.0075]
[1736515915112,14.73596959,3270.0,3266.4,0.61111502]
[1736515915113,0.03823391,3269.9,3266.4,0.61111502]
[1736515915416,0.03824256,3269.9,3267.6,3.06033]
[1736515915589,3.03824256,3269.9,3265.2,1.6062]
[1736515915788,0.03824256,3269.9,3267.8,3.06011]
[1736515916004,0.03824256,3269.9,3265.9,0.60412945]
[1736515916214,14.73596959,3270.0,3264.6,4.29]
[1736515916215,9.98537578,3270.0,3269.4,3.05863]
[1736515916440,7.73800077,3270.0,3269.5,0.01591124]
[1736515916744,7.73800077,3270.0,3269.1,3.05893]
[1736515916965,7.73800077,3270.0,3269.2,0.0159218]
[1736515917166,7.73800077,3270.0,3268.3,0.0075]
[1736515917167,7.73800077,3270.0,3266.5,3.06138]
[1736515917302,1.6395,3269.9,3266.5,0.61571079]
[1736515917500,1.6395,3269.9,3266.7,1.52525357]
[1736515917749,1.6395,3269.9,3266.9,3.0]
[1736515918047,1.518,3271.0,3269.7,3.05837]
[1736515918251,1.518,3271.0,3267.4,3.06051]
[1736515918401,1.518,3271.0,3265.3,1.59728234]
[1736515918402,0.13324819,3270.8,3266.2,3.06166]
[1736515918597,0.13324819,3270.8,3269.0,3.05903]
[1736515918907,0.13324819,3270.8,3262.9,1.5545]
[1736515918908,1.5244,3268.9,3262.9,1.5545]
[1736515919240,0.03825837,3268.8,3265.0,0.61631686]
[1736515919459,0.03825526,3268.8,3266.8,3.06104]
[1736515919823,0.03825526,3268.8,3266.5,3.06133]
[1736515920204,0.03825526,3268.8,3261.9,2.0]
[1736515920205,0.03825526,3268.8,3266.6,3.06125]
[1736515920367,1.5244,3268.9,3266.6,0.01597361]
[1736515920572,0.03824623,3268.8,3263.3,13.0]
[1736515920732,1.5244,3268.9,3266.8,3.06103]
[1736515920935,1.5244,3268.9,3266.9,3.01596022]
[1736515921268,0.03824507,3268.8,3266.2,3.06165]
[1736515921414,0.03824507,3268.8,3264.0,1.53453373]
[1736515921415,0.03824507,3268.8,3264.1,4.289]
[1736515921612,1.5244,3268.7,3264.5,0.61895147]
[1736515921832,3.06039,3267.6,3264.9,3.06279]
[1736515922033,3.0609,3267.1,3264.5,3.0632]
[1736515922237,0.03827253,3267.0,3264.6,3.06309]
[1736515922436,0.03827253,3267.0,3263.4,3.06428]
[1736515922654,1.5244,3267.5,3264.0,0.61876766]
[1736515922851,1.5244,3267.5,3266.1,0.015]
[1736515923019,1.5244,3267.5,3265.3,3.0625]
[1736515923212,1.5244,3267.5,3264.3,35.0]
[1736515923446,1.5244,3267.5,3266.8,3.06107]